Cogmind - Beta 14 @@@ ROGUE MODE // 2024.08.20 @ 12:40:10 Player: Calliope Result: Destroyed by S-10 Pest with Light Assault Rifle Performance ------------- Evolutions (0) 0 Regions Visited (1) 200 Robots Destroyed (4) 20 Value Destroyed (146) 146 Prototype IDs (0) 0 Alien Tech Used (0) 0 Bonus (0) 0 TOTAL SCORE: 366 Bonus ------- None Cogmind --------- Core Integrity 0/250 Matter 99/300 Energy 249/250 System Corruption 0% Temperature Warm (194) Movement Core (600) Ox11 Location -10/Materials Parts ------- > --- POWER (1) -------- Ion Engine > --- PROPULSION (2) --- Compact Wheel Compact Wheel > --- UTILITY (2) ------ Large Storage Unit Structural Scanner > --- WEAPON (2) ------- Particle Cannon Particle Cannon > --- INVENTORY (15) --- Ion Engine Light Ion Engine Light Treads Light Treads Aluminum Leg Aluminum Leg Aluminum Leg Aluminum Leg Particle Cannon Particle Cannon Rocket Launcher Rocket Launcher Rocket Launcher Rocket Launcher Peak State ------------ > --- POWER ------------ Ion Engine > --- PROPULSION ------- Compact Wheel Compact Wheel > --- UTILITY ---------- Large Storage Unit Structural Scanner > --- WEAPON ----------- Particle Cannon Particle Cannon > --- INVENTORY -------- Ion Engine Light Ion Engine Light Treads Light Treads Aluminum Leg Aluminum Leg Aluminum Leg Aluminum Leg EM Pulse Gun EM Pulse Gun Particle Cannon Rocket Launcher Rocket Launcher Rocket Launcher Rocket Launcher [Rating: 11] Favorites ----------- Power Ion Engine Engine Ion Engine Propulsion Compact Wheel Leg Aluminum Leg Wheel Compact Wheel Utility Large Storage Unit Device Structural Scanner Storage Large Storage Unit Weapon Particle Cannon Energy Gun EM Pulse Gun Energy Cannon Particle Cannon Ballistic Gun Assault Rifle Build | -11 -10 ------- Run | Yrd Mat Slots Evolved . | . . Power . | . . Propulsion . | . . Utility . | . . Weapon . | . . Parts Attached 14 | 6 8 Power 1 | 1 . Engine 1 | 1 . Core . | . . Reactor . | . . Propulsion 4 | 2 2 Treads . | . . Leg 2 | 2 . Wheel 2 | . 2 Hover . | . . Flight . | . . Utility 3 | 1 2 Device 1 | . 1 Storage 2 | 1 1 Processor . | . . Hackware . | . . Protection . | . . Artifact . | . . Weapon 6 | 2 4 Energy Gun 1 | 1 . Energy Cannon 4 | . 4 Ballistic Gun 1 | 1 . Ballistic Cannon . | . . Launcher . | . . Special Weapon . | . . Impact Weapon . | . . Slashing Weapon . | . . Piercing Weapon . | . . Special Melee Weapon . | . . Unidentified Prototypes . | . . Parts Lost . | . . Power . | . . Propulsion . | . . Utility . | . . Weapon . | . . Highest Loss Streak . | . . To Critical Strikes . | . . Average Slot Usage (%) 97 | . 97 Engine 14 | . 14 Leg 1 | . 1 Wheel 26 | . 26 Device 12 | . 12 Storage 14 | . 14 Energy Gun 3 | . 3 Energy Cannon 16 | . 16 Ballistic Gun 7 | . 7 Peak Build Rating 11 | 6 11 Average Rating 7 | 4 8 On Entrance 3 | . 6 Naked Turns . | . . Heaviest Build 34 | 14 34 Greatest Support 32 | 20 32 Greatest Overweight (x) 11 | . 11 Average Overweight (x) . | . . Largest Inventory Capacity 15 | 8 15 Average Capacity 13 | 6 14 Most Carried 15 | 6 15 Average Carried 9 | 3 10 Final Capacity 15 | 8 15 Final Carried 14 | 6 14 Class Distribution -------------------- 100% | Mutant Dominant Class ---------------- Mutant | -10/Materials Resources | -11 -10 ----------- Run | Yrd Mat Matter Collected 331 | 260 71 Remotely . | . . Salvage Created 139 | . 139 Parts 5 | . 5 Haulers Intercepted . | . . Recyclers Shooed . | . . Parts Field Recycled . | . . Retrieved Matter . | . . Parts Self-Destructed . | . . Prevented . | . . Kills | -11 -10 ------- Run | Yrd Mat Combat Hostiles Destroyed 4 | . 4 Guns 1 | . 1 Cannons 3 | . 3 Classes Destroyed 1 | . 1 Grunt 4 | . 4 Best Kill Streak 2 | . 2 Combat Bots Only 2 | . 2 Max Kills in Single Turn 1 | . 1 Gunslinging . | . . Exploded . | . . Melee . | . . Uniques/NPCs Destroyed . | . . Combat | -11 -10 -------- Run | Yrd Mat Hostile Shots Fired 37 | . 37 Missed 8 | . 8 Damage Taken 420 | . 420 Core 255 | . 255 Absorbed by Shields . | . . Core Remaining (%) 100 | 100 . Volleys Fired 26 | . 26 Largest 2 | . 2 Hottest 136 | . 136 Shots Fired 41 | . 41 Gun 7 | . 7 Cannon 34 | . 34 Launcher . | . . Special . | . . Kinetic 7 | . 7 Thermal 34 | . 34 Explosive . | . . Electromagnetic . | . . Robot Hit Streak 5 | . 5 Robot Miss Streak 2 | . 2 Penetration Max . | . . Secondary Targets . | . . Shots Hit Robots 23 | . 23 Core Hits 4 | . 4 Critical Kills 1 | . 1 Critical Parts Destroyed . | . . Critical Strikes 1 | . 1 Destroy 1 | . 1 Melee Attacks . | . . Impact . | . . Slashing . | . . Piercing . | . . Sneak Attacks . | . . Combat Hostiles . | . . Follow-up Attacks . | . . Damage Inflicted 425 | . 425 Guns 49 | . 49 Cannons 376 | . 376 Explosions . | . . Melee . | . . Ramming . | . . Kinetic 49 | . 49 Thermal 376 | . 376 Explosive . | . . Electromagnetic . | . . Impact . | . . Slashing . | . . Piercing . | . . Highest Corruption . | . . Average Corruption . | . . Corruption Purged . | . . Corruption Blocked . | . . Overload Shots . | . . Overflow Damage 8 | . 8 Projectiles 8 | . 8 Explosions . | . . Melee . | . . Knockbacks . | . . Impact . | . . Kinetic . | . . Secondary . | . . Self-Inflicted Damage . | . . Shots . | . . Rammed . | . . Targets Rammed . | . . Kicked . | . . Crushed . | . . Highest Temperature 909 | . 909 Average Temperature 421 | . 421 Received Heat Transfer 144 | . 144 Effects 37 | . 37 Shutdowns 5 | . 5 Energy Bleed 4 | . 4 Interference 2 | . 2 Matter Decay 5 | . 5 Short Circuit 5 | . 5 Damage (minor) 3 | . 3 Damage (major) 10 | . 10 Damage (core) 3 | . 3 Siege Activations . | . . Robots Corrupted . | . . Combat Hostiles . | . . Parts Fried . | . . Impact Corruptions . | . . Robots Melted . | . . Combat Hostiles . | . . Parts Melted 1 | . 1 Heat Transferred 703 | . 703 Parts Sabotaged . | . . Parts Stolen . | . . Parts Stripped . | . . Power Chain Reactions . | . . Alert | -11 -10 ------- Run | Yrd Mat Peak Influence 123 | . 123 Initial . | . . Average 38 | . 47 Maximum Alert Level . | . . Low Security (%) 100 | 100 100 Level 1 . | . . Level 2 . | . . Level 3 . | . . Level 4 . | . . Level 5 . | . . High Security . | . . Max Security . | . . Squads Dispatched 1 | . 1 Investigation . | . . Extermination . | . . Reinforcement 1 | . 1 Assault . | . . Garrison . | . . Intercept . | . . Searches Triggered . | . . Construction Impeded . | . . Haulers Reinforced . | . . Active Scanning Responses . | . . Cargo Convoy Interrupts . | . . Stealth | -11 -10 --------- Run | Yrd Mat Distress Signals 2 | . 2 Communications Jammed . | . . Distress Signals . | . . Times Spotted 9 | . 9 Peak Tracking Total 3 | . 3 Tactical Retreats . | . . Traps | -11 -10 ------- Run | Yrd Mat Traps Triggered . | . . Indirectly . | . . Trap Hack Attempts . | . . Triggered . | . . Disarmed . | . . Reprogrammed . | . . Reused . | . . Traps Extracted . | . . Installed . | . . Triggered . | . . Machines | -11 -10 ---------- Run | Yrd Mat Machines Disabled 1 | . 1 Max in Single Turn 1 | . 1 Machines Repaired . | . . Machines Dismantled . | . . Machines Sabotaged . | . . Overloaded Fab Kills . | . . Hacking | -11 -10 --------- Run | Yrd Mat Machines Accessed 3 | . 3 Terminals 3 | . 3 Fabricators . | . . Repair Stations . | . . Recycling Units . | . . Scanalyzers . | . . Garrison Access . | . . Total Hacks 3 | . 3 Successful . | . . Failed 3 | . 3 Catastrophic . | . . Database Lockouts . | . . Manual 3 | . 3 Terminals 3 | . 3 Fabricators . | . . Repair Stations . | . . Recycling Units . | . . Scanalyzers . | . . Garrison Access . | . . Terminal Hacks . | . . Fabricator Hacks . | . . Repair Station Hacks . | . . Recycling Unit Hacks . | . . Scanalyzer . | . . Garrison Access Hacks . | . . Unauthorized Hacks . | . . Terminals . | . . Fabricators . | . . Repair Stations . | . . Recycling Units . | . . Scanalyzers . | . . Garrison Access . | . . Data Cores Recovered . | . . Used . | . . Hacking Detections 2 | . 2 Full Trace Events . | . . Feedback Events . | . . Feedback Blocked . | . . Robot Schematics Acquired . | . . Robots Built . | . . Authchips . | . . Time . | . . Total Robot Build Rating . | . . Part Schematics Acquired . | . . Parts Built . | . . Authchips . | . . Time . | . . Total Part Build Rating . | . . Parts Repaired . | . . Time . | . . Parts Recycled . | . . Recycled Matter . | . . Retrieved Matter . | . . Retrieved Components . | . . Parts Scanalyzed . | . . Part Schematics Acquired . | . . Parts Damaged . | . . Bothacking | -11 -10 ------------ Run | Yrd Mat Used RIF Installer . | . . Robots Hacked . | . . Non-combat . | . . Combat . | . . Robot Hacks Applied . | . . Relay Couplers Released . | . . Fabnet Peak Effective % . | . . Robots Rewired . | . . Allies Hacked . | . . Hacks Repelled . | . . Allies | -11 -10 -------- Run | Yrd Mat Total Allies . | . . Largest Group . | . . Highest-Rated Group . | . . Highest-Rated Ally . | . . Total Orders . | . . Ally Attacks . | . . Total Damage . | . . Kills . | . . Allies Corrupted . | . . Allies Melted . | . . Intel | -11 -10 ------- Run | Yrd Mat Robot Analysis Total . | . . Derelict Logs Recovered . | . . Drone Launches . | . . Drone Recoveries . | . . Exploration | -11 -10 ------------- Run | Yrd Mat Turns Passed 442 | 82 360 Spaces Moved 266 | 62 204 Core 16 | 10 6 Treads . | . . Legs 65 | 52 13 Wheels 185 | . 185 Hover . | . . Flight . | . . Fastest Speed 50 | 50 100 Average Speed 120 | 108 123 Slowest Speed 600 | 120 600 Overloaded Moves . | . . Propulsion Burnouts . | . . Robots Hopped . | . . Cave-ins Triggered . | . . Exploration Rate (%) 15 | 5 26 Regions Visited 1 Branch Regions . Pre-discovered Areas . | . . Known Exits Taken . | . . Unknown Exits Taken 1 | 1 . Scrap Searched . | . . Spaces Dug . | . . Terrain Destroyed . | . . Melee . | . . Projectile . | . . AOE . | . . Terrain Rammed . | . . Walls Destroyed . | . . Machines Disabled . | . . Actions | -11 -10 --------- Run | Yrd Mat Total 351 | 74 277 Wait 20 | . 20 Move 265 | 61 204 Hop . | . . Pick Up 19 | 7 12 Fast Attach 8 | 5 3 Attach 1 | 1 . Detach 1 | . 1 Swap 5 | . 5 Drop 6 | . 6 Fire 26 | . 26 Melee . | . . Ram . | . . Kick . | . . Crush . | . . Escape Stasis . | . . Rewire . | . . Trap . | . . Miscellaneous . | . . Route ------- -11/Scrapyard -10/Materials (discovered 1 exit: [*Mat]) History --------- Turn | Location | Event 8 | -11/Scrapyard | Discovered new exit (range 14) 83 | -11/Scrapyard | Entered Materials 298 | -10/Materials | Discovered new exit (range 10) 304 | -10/Materials | Build established: Mutant 387 | -10/Materials | Core integrity fell below 50% 395 | -10/Materials | Core integrity fell below 20% 443 | -10/Materials | Destroyed by S-10 Pest with Light Assault Rifle Last Messages --------------- 00407_ Particle Cannon broken. 00407_ Overheating: Short circuit. 00408_ Overheating: Broken Com. Wheel damaged (-3). 00410_ Overheating: Lrg. Storage Unit damaged (-45). 00411_ Overheating: Energy bleed (-18). 00412_ Particle Cannon broken. 00412_ Overheating: Short circuit. 00413_ U-05 Engineer builds a Door. 00414_ Overheating: Matter decay (-31). 00418_ Overheating: Matter decay (-21). 00420_ Power failure, Ion Engine shutdown. 00423_ Overheating: Core damaged (-32). 00426_ W-16 Scout sends out distress signal. 00428_ Overheating: Matter decay (-22). 00431_ Power failure, Ion Engine shutdown. 00436_ Overheating: Broken Com. Wheel damaged (-11). 00441_ W-16 Scout sends out distress signal. Map ----- +----------------------------------------------------+ | ? """ # ???????????????????????????????????????? | | ??? # ???????????????????????????????????????? | | ????? + ???????????????????????????????????????? | | ?????## # ???????????????????????????????????????? | | ????? # # ???????????????????????????????????????? | | ????? # ##??????????? #????????????????????????? | | ????? # ############? ##????????????????????????? | | ????? # ############? ##????????????????????????? | | ????? # ### ##? ##????????????????????????? | | ????? # ### ## ## ???????????????????????? | | ????? # ### ## ## ???????????????????????? | | ????? # + # [ # ???????????????????????? | | ????? # # # # ???????????????????????? | | ####### # [ =# + ???????????????????????? | | ## + # # ???????????????????????? | | ## # # # ???????????????????????? | | ## #####+#### ###???????????????????????? | | ## ##### ##????????????????????????? | | ## ###"" ##????????????????????????? | | + ###" T #########?????????????????? | | ## T#"" #########?????????????????? | | ## ""### #]] ] ##?????????????????? | | ## ##### =% #]] ##?????????????????? | | ####### ##### = # ##?????????????????? | | ?????## s ! # ### # ???? | | ?????## w %% @ #################???? | | ??? [ + ##???? | | ???#### % ## ##???? | | ???##### ###+### ## """ """ """ ##???? | | ?????### #######+#### % ## T# """ """ """ ##???? | | ??????## ### # ## ## """ """ """ ##???? | | ??????## #????????? # ## ## ##???? | | ??????? #????????? # # ###+############???? | | ???????##?????????? # # ##???? | | ??????????????????? # # < ##???? | | ??????????????????? # # ##???? | | ??????????????????? ##### ################???? | | ??????????????????? ##########################???? | | ???????????????????????#########?????????????????? | | ?????????????????????????????????????????????????? | | | | | | | | | | | | | | | | | | | | | +----------------------------------------------------+ Best States ------------- Heat Dissipation 25 Energy Generation 10 Energy Capacity 250 Matter Stores 300 Matter Capacity 300 Sight Range 16 Terrain Scan Density 10 Evasion (%) 55 Item Schematics ----------------- None Robot Schematics ------------------ None Fabricated ------------ Nothing Alien Tech Used ----------------- None Achievements -------------- None Challenges ------------ None Game ------ Seed FusionThrusterArmor Manual? 0 Play Time 00:07:29 Cumulative 25.3 hours Start 2024.08.20 @ 12:32:57 End 2024.08.20 @ 12:40:10 Sessions 1 Manual Loads 0 Difficulty Rogue Special Mode None Game No. 46 Rogue 44 Adventurer 0 Explorer 2 Win Type - Total 0 Types 0/0/0/0/0/0/0/0/0 Lore% 11 Gallery% 27 Achievement% 28 Wizard Run 0 Options --------- Layout 2 ASCII 0 Keyboard 1 Movement Vi Keybinds 0 Fullscreen 2 Font 32/SmallcapsGlow Map View 50x44 Zoom Use 0% Tactical HUD 1 Map Filters NONE Filters NONE Steam 1 RUN: 2af8f3e9-a1cf-4bdc-8211-7bb2283f4d64